bitfinex-derivatives/quotes_ETHF0:USTF0_20260204
["timestamp","ask_amount","ask_price","bid_price","bid_amount"]
[1770234098790,7.83604274,2145.1,2143.9,7.36864531]
[1770234099291,7.83604274,2145.1,2143.9,10.14824702]
[1770234099488,7.83604274,2145.1,2143.9,7.36864531]
[1770234099991,7.83604274,2145.1,2143.9,10.14824702]
[1770234100489,7.83604274,2145.1,2143.9,7.36864531]
[1770234100691,0.1044117,2145.1,2144.1,10.22422768]
[1770234100889,7.26463104,2145.4,2144.5,7.44462597]
[1770234101086,0.467,2145.9,2144.5,7.67821597]
[1770234101389,7.26463104,2145.8,2144.5,2.77960171]
[1770234101586,7.26463104,2145.8,2144.4,10.24663281]
[1770234101791,7.27014766,2145.8,2144.5,12.15956166]
[1770234101989,7.27014766,2145.8,2144.5,7.7006211]
[1770234102989,7.27014766,2145.8,2144.7,7.4670311]
[1770234103189,7.26463104,2146.3,2145.3,7.46354481]
[1770234103389,7.26463104,2146.6,2145.3,7.46354481]
[1770234103789,7.26463104,2146.6,2145.3,7.69704481]
[1770234104189,7.26980249,2146.6,2145.4,7.46354481]
[1770234104495,7.26980249,2146.6,2145.6,7.69701481]
[1770234104992,6.34624459,2147.6,2145.6,7.69701481]
[1770234104993,7.26463104,2147.5,2146.2,7.45837336]
[1770234105291,7.26463104,2147.5,2146.3,7.48842377]
[1770234105693,7.26463104,2147.5,2146.5,7.72180377]
[1770234105892,0.00510386,2147.5,2146.7,7.48842377]
[1770234106091,7.73163104,2148.1,2146.7,7.72177377]
[1770234106291,7.26463104,2148.4,2147.0,2.77960171]
[1770234106597,7.26463104,2148.2,2146.6,0.467]
[1770234106991,7.2686243,2148.2,2146.6,7.95943347]
[1770234107192,7.26463104,2148.5,2147.5,7.47919996]
[1770234107399,7.26463104,2148.8,2147.7,7.47919996]
[1770234107596,7.26463104,2148.8,2147.4,7.47919996]
[1770234108090,7.26463104,2148.8,2147.7,0.23324]
[1770234108297,0.00536319,2148.8,2147.8,7.47919996]
[1770234108599,7.26999423,2148.8,2147.9,0.23322]
[1770234108794,0.00536319,2148.8,2147.9,7.71241996]
[1770234109297,0.1,2149.1,2148.1,7.52925861]
[1770234109494,7.36463104,2149.1,2148.0,0.23321]
[1770234109899,7.36463104,2149.1,2147.6,0.466]
[1770234110302,7.37048625,2149.1,2147.6,0.466]
[1770234110895,7.26463104,2148.6,2146.9,7.52925861]
[1770234111097,7.26463104,2148.4,2146.8,0.466]
[1770234111299,7.26463104,2148.2,2146.8,0.466]
[1770234111702,7.49785104,2148.0,2146.6,0.0040097]
[1770234112097,7.26463104,2148.0,2146.6,7.58180296]
[1770234112401,7.26463104,2148.0,2146.9,7.57779326]
[1770234112597,7.26463104,2148.0,2146.9,7.81112326]
[1770234112996,7.26463104,2148.0,2146.6,7.58180296]
[1770234113200,7.26463104,2148.0,2146.8,7.52968977]
[1770234113500,7.26463104,2148.4,2146.9,0.23333]
[1770234113694,7.26463104,2148.4,2146.9,7.76301977]
[1770234113900,7.26463104,2148.4,2147.1,7.42603338]
[1770234114100,7.26463104,2148.4,2147.1,7.65934338]
[1770234114401,7.45686196,2148.8,2147.5,7.42603338]
[1770234115103,7.45686196,2148.8,2147.4,0.23328]
[1770234115304,7.45686196,2148.8,2147.4,7.65931338]
[1770234115504,7.45686196,2148.8,2147.4,0.23328]
[1770234115699,7.45686196,2148.8,2147.0,7.42603338]
[1770234115700,7.45686196,2148.8,2147.0,7.65935338]
[1770234115905,7.45686196,2148.8,2147.2,7.42603338]
[1770234116097,7.45686196,2148.8,2147.2,7.65933338]
[1770234116302,7.69000196,2148.8,2146.9,7.89203338]
[1770234117205,7.69000196,2148.8,2146.9,8.12536338]
[1770234117900,7.45686196,2148.8,2147.1,7.65933338]
[1770234118296,7.45686196,2148.8,2146.9,0.466]
[1770234118606,7.45686196,2148.2,2146.6,7.54895346]
[1770234119105,7.45686196,2148.2,2146.6,0.0040097]
[1770234119305,7.69005196,2148.2,2146.6,0.0040097]
[1770234119700,7.69005196,2148.2,2146.6,7.54895346]
[1770234119906,7.45686196,2148.2,2146.6,7.54895346]
[1770234120106,7.45686196,2148.2,2146.8,7.77828376]
[1770234120405,7.07458753,2148.8,2147.2,7.77824376]
[1770234120601,0.10585521,2149.1,2148.3,7.77811376]
[1770234120804,7.07458753,2149.4,2148.3,7.78335755]
[1770234121006,0.466,2150.0,2148.5,7.54494376]
[1770234121007,7.07458753,2149.9,2148.5,7.54494376]
[1770234121201,7.07458753,2149.9,2148.9,8.63369414]
[1770234121500,7.54058753,2150.9,2149.7,7.56134414]
[1770234121706,7.54058753,2150.9,2149.7,7.79437414]
[1770234122002,7.5438663,2150.9,2149.4,7.56134414]
[1770234122203,7.5438663,2150.9,2149.0,8.02734414]
[1770234122409,7.07458753,2150.7,2149.0,8.02734414]
[1770234122600,7.30753753,2150.5,2149.0,0.466]
[1770234122905,7.30753753,2150.5,2148.3,8.63922793]
[1770234123105,7.07458753,2150.3,2148.3,7.56658793]
[1770234123500,8.14649753,2149.8,2148.3,0.00524379]
[1770234123802,7.07458753,2149.6,2148.4,7.71990946]
[1770234124008,7.07458753,2149.6,2148.4,7.48673946]
[1770234124600,7.07458753,2149.6,2148.3,0.00524379]
[1770234124601,7.07458753,2149.4,2148.3,0.00524379]
[1770234124903,8.14669753,2149.4,2148.3,0.00524379]
[1770234125101,8.14669753,2149.4,2147.3,0.36583107]
[1770234125102,7.07458753,2149.0,2147.3,0.36583107]
[1770234125300,7.07458753,2149.0,2147.3,7.94105832]
[1770234125506,7.07458753,2149.0,2147.3,7.57522725]
[1770234126006,7.07884054,2149.0,2147.3,7.57992775]
[1770234126402,7.07884054,2149.0,2147.3,0.0047005]
[1770234126601,7.31195054,2149.0,2147.3,0.0047005]
[1770234127006,7.07458753,2148.8,2147.3,0.0047005]
[1770234127508,15.31761911,2151.8,2150.0,7.07458753]
[1770234127708,7.07458753,2151.7,2150.4,1.07159]
[1770234128012,1.61800605,2151.6,2150.4,7.07458753]
[1770234128213,1.61800605,2151.7,2150.7,8.14603753]
[1770234128411,0.00589368,2151.7,2150.8,1.30428]
[1770234128611,7.07458753,2152.6,2151.3,8.37856753]
[1770234128813,7.07458753,2152.6,2151.3,7.30743753]
[1770234129009,0.7780807,2152.5,2151.3,7.30743753]
[1770234129309,0.7780807,2152.5,2151.0,1.0713]
[1770234129310,7.07458753,2153.9,2152.5,8.2642277]
[1770234129510,7.07458753,2153.9,2152.3,7.6596677]
[1770234129813,7.54058753,2154.3,2152.9,8.2640177]
[1770234130107,7.54058753,2154.3,2152.9,7.1936677]
[1770234130312,7.07458753,2154.0,2152.3,0.47049712]
[1770234130516,7.07458753,2153.8,2152.3,7.66416482]
[1770234130711,7.07458753,2153.7,2152.3,0.00449712]
[1770234131007,7.07458753,2153.0,2152.3,0.00449712]
[1770234131315,0.00464744,2153.8,2152.3,0.00449712]
[1770234131316,0.00464744,2153.8,2152.5,7.23890296]
[1770234131506,11.73283497,2153.8,2152.4,0.23274]
[1770234131708,7.07458753,2153.5,2152.3,0.00449712]
[1770234131912,7.07458753,2153.5,2152.3,7.24340008]
[1770234132308,7.07458753,2153.5,2152.3,0.00449712]
[1770234132516,7.07458753,2153.3,2152.3,0.00449712]
[1770234132912,11.72818753,2153.3,2152.3,0.00449712]
[1770234133112,7.07458753,2153.7,2152.3,7.24340008]
[1770234133418,11.72818753,2153.5,2152.3,0.00449712]
[1770234133611,7.07458753,2153.4,2152.3,0.00449712]
[1770234133812,7.07458753,2153.2,2152.3,0.00449712]
[1770234134213,11.72818753,2153.1,2152.3,0.00449712]
[1770234134507,7.07458753,2153.1,2152.3,0.00449712]
[1770234134712,7.07458753,2153.5,2152.3,7.15302884]
[1770234134907,7.07458753,2153.5,2152.4,8.21914172]
[1770234135107,7.07923497,2153.8,2152.6,7.14853172]
[1770234135513,11.73283497,2153.8,2152.6,7.14853172]
[1770234136718,7.07458753,2154.5,2153.3,0.23264]
[1770234136912,7.07458753,2154.5,2153.4,7.8106822]
[1770234137211,7.07458753,2154.4,2153.0,7.5780522]
[1770234137519,7.07458753,2154.2,2153.0,7.5780522]
[1770234137717,7.07816035,2154.2,2153.0,7.5780522]
[1770234137916,0.00357282,2154.2,2153.0,7.8107222]
[1770234138314,7.53958753,2154.6,2154.2,0.01036037]
[1770234138715,4.6536,2154.3,2153.2,7.5780522]
[1770234138913,7.07458753,2156.0,2154.3,7.5780522]
[1770234139115,7.07458753,2156.0,2154.6,7.8105522]
[1770234139311,7.07458753,2156.0,2154.6,0.00396355]
[1770234139312,7.07458753,2155.9,2154.6,0.00396355]
[1770234139518,7.07458753,2154.7,2153.5,7.5780522]
[1770234139818,7.07458753,2154.7,2153.0,7.5780522]
[1770234140217,7.07458753,2155.5,2154.2,7.5780522]
[1770234140416,0.00500881,2156.0,2154.4,8.6476622]
[1770234140717,0.00500881,2156.0,2154.2,1.07495653]
[1770234140718,7.07458753,2155.9,2154.6,7.5780522]
[1770234141217,7.07458753,2155.7,2154.6,7.5780522]
[1770234141619,7.07458753,2155.5,2154.3,8.7388822]
[1770234142114,7.07458753,2155.3,2154.3,0.9283]
[1770234142323,7.07458753,2155.1,2154.3,0.9283]
[1770234142510,7.07458753,2155.0,2154.3,0.9283]
[1770234142714,11.72818753,2154.7,2154.3,0.9283]
[1770234142920,7.07458753,2154.7,2154.3,0.9283]
[1770234143118,4.6536,2154.3,2153.6,7.5780522]
[1770234143312,4.6536,2154.6,2153.6,7.5780522]
[1770234143818,12.10956594,2154.6,2153.6,7.5780522]
[1770234144015,7.46094795,2154.6,2153.6,0.00508739]
[1770234144213,4.6536,2154.3,2153.6,0.00508739]
[1770234144414,4.6536,2154.3,2153.7,0.9286]
[1770234144617,7.45596594,2154.5,2153.7,0.9286]
[1770234144815,4.6536,2154.1,2153.7,0.9286]
[1770234145016,12.10956594,2154.1,2153.0,7.29624461]
[1770234145322,7.45596594,2154.1,2153.0,7.29624461]
[1770234145515,12.10956594,2154.1,2153.0,7.29624461]
[1770234145724,7.45596594,2154.5,2153.2,7.52889461]
[1770234146116,7.45596594,2154.5,2153.2,7.5329463]
[1770234146423,7.45596594,2154.4,2153.2,7.5329463]
[1770234146613,7.45596594,2154.3,2153.2,7.5329463]
[1770234147621,4.6536,2154.0,2153.2,0.00405169]
[1770234147821,12.10956594,2154.0,2153.2,0.00405169]
[1770234148023,4.6536,2153.6,2153.2,0.00405169]
[1770234148225,4.6536,2153.6,2152.9,0.465]
[1770234148422,4.6536,2153.5,2152.9,0.465]
[1770234148621,7.45596594,2153.8,2152.2,7.29624461]
[1770234148822,7.45596594,2153.4,2152.2,7.29624461]
[1770234149021,0.23255,2154.2,2152.0,0.465]
[1770234149022,7.45596594,2154.2,2153.0,7.52891461]
[1770234149222,7.45596594,2154.2,2153.8,0.05310303]
[1770234149424,4.64323963,2154.0,2153.8,0.05310303]
[1770234149622,4.64323963,2153.9,2153.0,7.53356482]
[1770234149824,7.45596594,2154.2,2153.0,0.00465021]
[1770234150019,12.09920557,2154.2,2153.1,0.23265]
[1770234150226,7.45596594,2154.2,2153.1,7.52889461]
[1770234150726,4.64323963,2154.1,2153.1,7.52889461]
[1770234150927,7.45596594,2154.2,2153.2,7.29624461]
[1770234151427,7.46094795,2154.6,2153.4,7.52887461]
[1770234151828,7.45596594,2154.5,2153.4,7.52887461]
[1770234152224,7.45596594,2154.5,2153.5,0.23262]
[1770234152424,7.45596594,2154.5,2153.5,7.52886461]
[1770234152620,12.09920557,2154.5,2153.5,7.52886461]
[1770234154031,0.00498201,2154.6,2153.5,0.23262]
[1770234154032,4.64323963,2154.2,2153.5,0.23262]
[1770234154526,4.64323963,2153.9,2153.1,7.29624461]
[1770234154728,4.64323963,2153.9,2153.0,0.23732021]
[1770234155031,4.64323963,2153.8,2153.0,0.23732021]
[1770234155230,4.64323963,2153.9,2153.0,0.23732021]
[1770234155530,7.45596594,2153.6,2153.0,0.00465021]
[1770234155732,7.45596594,2153.4,2153.0,0.00465021]
[1770234155927,7.45596594,2154.2,2153.1,7.52890461]
[1770234156127,12.09920557,2154.1,2153.1,7.52890461]
[1770234156531,4.64323963,2153.9,2153.1,0.23266]
[1770234156931,4.64323963,2153.8,2153.1,0.23266]
[1770234157129,4.64323963,2153.9,2153.1,0.23266]
[1770234157324,4.64323963,2153.9,2153.3,2.67807358]
[1770234157527,7.45596594,2154.2,2153.2,7.29624461]
[1770234157733,7.45596594,2154.2,2153.5,2.67807358]
[1770234158128,7.45596594,2154.2,2153.6,5.24958103]
[1770234158325,7.45596594,2154.2,2153.5,2.67807358]
[1770234158534,7.45596594,2154.2,2153.4,2.67807358]
[1770234158731,7.45596594,2154.2,2153.5,7.90758737]
[1770234158932,7.45596594,2154.2,2153.4,2.67807358]
[1770234159127,7.45596594,2154.2,2153.5,5.22937821]
[1770234159331,7.45596594,2154.2,2153.3,4.10234125]
[1770234159534,7.45596594,2154.2,2153.4,5.21943291]
[1770234159730,7.45596594,2154.2,2153.3,4.10234125]
[1770234159935,7.45596594,2154.2,2153.4,5.21898868]
[1770234160229,7.45596594,2154.2,2153.5,5.21898868]
[1770234160534,7.45596594,2154.2,2153.1,4.10234125]
[1770234161033,7.45596594,2154.2,2153.2,4.10234125]
[1770234161430,7.45596594,2154.2,2153.0,4.10699146]
[1770234161733,7.45596594,2154.0,2152.8,4.10234125]
[1770234161928,7.45596594,2154.0,2152.6,4.10234125]
[1770234162326,7.45596594,2153.8,2152.4,4.10234125]
[1770234162529,7.45596594,2153.6,2152.7,11.39858586]
[1770234162833,7.45596594,2154.0,2153.0,4.10234125]
[1770234163034,7.45596594,2154.0,2152.9,4.10234125]
[1770234163932,7.45596594,2153.8,2152.7,0.00530373]
[1770234166536,7.45596594,2153.8,2151.6,5.46978833]
[1770234166537,7.45596594,2152.9,2151.6,5.46978833]
[1770234166839,1.07012,2153.4,2151.4,7.76124461]
[1770234166840,7.92096594,2153.3,2151.9,7.29624461]
[1770234167333,7.45596594,2153.3,2152.0,7.52901461]
[1770234167530,7.46101953,2153.3,2152.0,7.53451309]
[1770234168735,7.46101953,2153.3,2152.0,0.00549848]
[1770234169739,7.69365953,2153.3,2152.0,0.00549848]
[1770234170038,7.45596594,2153.1,2152.0,0.00549848]
[1770234170439,7.68862594,2153.1,2152.0,0.00549848]
[1770234170640,7.45596594,2152.6,2152.0,0.00549848]
[1770234170937,7.45596594,2152.6,2151.4,0.465]
[1770234171133,7.45596594,2152.6,2151.4,7.76124461]
[1770234171333,0.465,2152.8,2151.6,7.52906461]
[1770234171537,0.465,2152.8,2151.9,7.29624461]
[1770234171735,0.465,2152.8,2151.9,7.30101279]
[1770234172038,7.92096594,2152.8,2151.9,7.30101279]
[1770234172840,7.92096594,2152.8,2151.9,0.00476818]
[1770234173037,7.45596594,2152.8,2151.9,7.30101279]
[1770234173240,7.45596594,2153.1,2152.0,4.86526539]
[1770234173442,7.45596594,2153.1,2152.1,4.86526539]
[1770234173633,7.45596594,2153.1,2151.9,7.30101279]
[1770234173940,7.45596594,2153.1,2152.0,4.86609565]
[1770234174141,7.45596594,2153.1,2151.9,7.30101279]
[1770234174441,7.45596594,2153.1,2152.0,4.86594813]
[1770234174641,7.45596594,2153.1,2151.9,7.30101279]
[1770234174841,7.45596594,2153.1,2151.9,0.00476818]
[1770234175334,7.45596594,2153.1,2151.9,7.32613769]
[1770234175535,7.45596594,2153.1,2151.9,0.00476818]
[1770234175736,7.45596594,2153.1,2151.9,7.32613769]
[1770234176134,7.45596594,2153.1,2152.0,4.86476641]
[1770234176337,7.45596594,2153.1,2152.2,7.32136951]
[1770234176533,7.45596594,2153.1,2152.3,4.86421191]
[1770234176737,7.45596594,2153.1,2151.9,7.32613769]
[1770234176940,7.45596594,2153.1,2152.0,4.86576939]
[1770234177241,7.45596594,2153.1,2151.9,7.32613769]
[1770234178241,7.68863594,2153.1,2151.9,0.00476818]
[1770234181046,7.45596594,2153.1,2152.1,7.18493133]
[1770234181244,7.31831066,2154.4,2152.9,7.18493133]
[1770234181438,7.31831066,2154.4,2153.0,7.41760133]
[1770234181644,7.31831066,2154.4,2152.7,7.18493133]
[1770234181839,7.31831066,2154.2,2152.7,7.18493133]
[1770234182041,7.31831066,2154.2,2152.7,7.41763133]
[1770234182242,7.32295163,2154.2,2152.8,12.04576102]
[1770234182442,7.32295163,2154.2,2152.9,4.86154548]
[1770234182744,7.32295163,2154.2,2152.8,7.18493133]
[1770234183337,7.31831066,2153.7,2152.4,7.18493133]
[1770234183544,7.31831066,2153.7,2152.5,12.04917346]
[1770234183738,7.31831066,2153.7,2152.5,7.18493133]
[1770234183936,0.465,2153.6,2152.3,0.465]
[1770234184135,7.31831066,2153.5,2152.3,0.465]
[1770234184334,7.31831066,2153.5,2152.4,4.86469115]
[1770234184539,7.31831066,2153.5,2152.4,7.18493133]
[1770234184740,7.31831066,2153.5,2152.5,11.94731951]
[1770234184939,7.31831066,2153.5,2152.5,7.18493133]
[1770234185141,0.465,2153.6,2152.7,7.18493133]
[1770234185340,0.465,2153.6,2152.9,7.18493133]
[1770234189956,7.52434918,2154.2,2153.0,4.76507198]
[1770234190254,7.52434918,2154.2,2153.2,7.40621645]
[1770234191253,0.00464097,2154.2,2153.2,7.40621645]
[1770234191753,0.00464097,2154.2,2153.4,7.40621645]
[1770234192052,7.51970821,2155.2,2153.7,7.63881645]
[1770234192248,7.51970821,2155.2,2153.7,7.40621645]
[1770234192652,7.51970821,2155.2,2154.1,7.40621645]
[1770234192853,7.52369074,2155.2,2154.1,7.41185967]
[1770234193052,0.00398253,2155.2,2154.1,7.41185967]
[1770234193455,7.52369074,2155.2,2154.1,7.41185967]
[1770234194854,7.52369074,2155.2,2154.1,0.00564322]
[1770234196548,7.52369074,2155.2,2153.3,7.40621645]
[1770234196549,7.51970821,2154.8,2153.3,7.40621645]
[1770234196754,7.75221821,2154.5,2152.9,7.40621645]
[1770234196952,7.51970821,2154.3,2152.7,0.2327]
[1770234197255,7.51970821,2154.3,2152.9,7.40621645]
[1770234197555,7.51970821,2153.9,2152.9,0.00511903]
[1770234197756,7.75228821,2153.9,2151.9,7.40621645]
[1770234198150,7.51970821,2153.8,2151.9,7.40621645]
[1770234198351,7.51970821,2153.8,2152.3,7.63895645]
[1770234198657,7.51970821,2153.8,2152.5,7.40621645]
[1770234200855,0.465,2154.1,2152.5,7.40621645]
[1770234200856,7.98470821,2154.1,2152.5,7.40621645]
[1770234201159,7.51970821,2154.4,2152.7,11.77440547]
[1770234201456,7.51970821,2154.4,2152.9,7.40621645]
[1770234203052,7.75222821,2154.4,2152.9,7.40621645]
[1770234203258,7.51970821,2154.2,2152.5,7.40621645]
[1770234203460,7.51970821,2154.2,2152.7,7.40621645]
[1770234203758,7.51970821,2154.2,2152.9,7.39647752]
[1770234203953,7.4826739,2154.5,2153.1,7.39647752]
[1770234205059,7.4826739,2155.1,2153.4,7.39647752]
[1770234205259,7.4826739,2155.1,2153.5,7.39647752]
[1770234205855,7.4826739,2155.1,2153.5,7.62909752]
[1770234206055,7.4826739,2155.1,2153.8,7.39647752]
[1770234206258,7.4826739,2155.1,2154.0,7.39647752]
[1770234206459,7.4826739,2155.1,2154.0,7.40165667]
[1770234208059,7.4826739,2155.1,2154.0,0.00517915]
[1770234208260,7.4826739,2154.7,2153.1,0.465]
[1770234208556,7.4826739,2154.0,2152.6,11.53196654]
[1770234208860,7.4826739,2154.0,2152.6,7.39647752]
[1770234209253,7.4826739,2154.3,2153.3,7.39647752]
[1770234209451,7.4826739,2154.3,2153.2,0.23265]
[1770234209452,7.4826739,2154.3,2152.8,4.13548902]
[1770234209752,7.4826739,2154.6,2153.2,7.62912752]
[1770234209952,7.4826739,2154.6,2153.4,7.39647752]
[1770234210152,7.4826739,2154.6,2153.4,7.62910752]
[1770234210658,7.4826739,2155.0,2153.7,7.39647752]
[1770234211253,7.4826739,2155.0,2153.9,7.39647752]
[1770234211857,7.4826739,2155.0,2153.6,11.53196654]
[1770234212056,7.4826739,2155.0,2153.7,4.73834106]
[1770234212260,7.4826739,2155.0,2153.6,7.39647752]
[1770234212651,0.00398253,2155.2,2153.3,7.39647752]
[1770234212652,7.4826739,2154.7,2153.3,7.39647752]
[1770234212857,7.4826739,2154.7,2153.3,7.62910752]
[1770234213054,7.4826739,2154.7,2153.5,7.39647752]
[1770234213260,7.4826739,2155.1,2153.7,7.62906752]
[1770234213461,0.00398253,2155.2,2153.9,7.39647752]
[1770234213661,7.48665643,2155.2,2153.9,7.62904752]
[1770234214166,0.00398253,2155.2,2154.1,7.39647752]
[1770234215159,0.00398253,2155.2,2154.3,7.39647752]
[1770234215365,0.00398253,2155.2,2154.3,7.40047388]
[1770234216465,0.00398253,2155.2,2154.3,7.63300388]
[1770234218264,0.00398253,2155.2,2154.3,7.40047388]
[1770234218859,7.48665643,2155.2,2154.3,0.00399636]
[1770234219458,7.48665643,2155.2,2154.3,7.40047388]
[1770234219667,0.00398253,2155.2,2154.3,7.40047388]
[1770234220667,15.24006166,2156.4,2155.2,7.39647752]
[1770234220863,7.4826739,2156.6,2155.6,7.39647752]
[1770234221160,7.82648272,2157.6,2156.3,7.62878752]
[1770234221367,7.82648272,2157.6,2156.3,7.39647752]
[1770234221562,7.58267749,2157.6,2155.9,7.39647752]
[1770234221767,7.4826739,2157.2,2155.9,7.40191786]
[1770234221968,7.4826739,2157.1,2155.9,7.40191786]
[1770234222667,7.4826739,2157.5,2156.2,7.39647752]
[1770234223170,7.58267749,2157.4,2156.2,7.39647752]
[1770234223369,0.10000359,2157.3,2156.2,7.39647752]
[1770234223567,0.10000359,2157.2,2156.2,7.39647752]
[1770234223770,7.4826739,2157.2,2156.2,7.39647752]
[1770234223970,0.10000359,2157.0,2156.2,7.39647752]
[1770234224171,0.10000359,2156.9,2156.2,7.39647752]
[1770234224369,7.4826739,2157.2,2156.2,7.39647752]
[1770234224370,0.10000359,2157.1,2156.2,7.39647752]
[1770234225070,7.4826739,2157.2,2156.2,7.39647752]
[1770234225267,0.10000359,2157.0,2156.2,7.39647752]
[1770234225773,7.4826739,2157.2,2156.2,7.39647752]
[1770234225974,0.10000359,2156.8,2155.9,7.40191786]
[1770234226274,7.58267749,2156.9,2155.9,7.40191786]
[1770234226475,7.4826739,2156.9,2155.9,0.00544034]
[1770234226676,7.58267749,2156.4,2155.9,0.00544034]
[1770234226974,7.4826739,2156.4,2155.3,7.39647752]
[1770234227170,7.4826739,2156.1,2155.1,0.464]
[1770234227374,7.4826739,2156.1,2155.1,7.86047752]
[1770234227575,0.10000359,2155.9,2155.1,0.464]
[1770234227874,7.58673479,2155.9,2155.1,0.46846743]
[1770234228176,0.0040573,2155.9,2155.1,7.86494495]
[1770234228773,0.10000359,2155.8,2155.1,7.86494495]
[1770234229177,0.10000359,2155.7,2155.1,7.86494495]
[1770234229379,0.10000359,2155.8,2155.1,7.86494495]
[1770234229776,0.10000359,2155.7,2155.1,0.46846743]
[1770234230176,0.10000359,2155.6,2155.1,0.46846743]
[1770234230371,0.10000359,2155.7,2155.1,0.46846743]
[1770234230774,0.10000359,2155.6,2155.1,0.46846743]
[1770234231280,0.10000359,2155.5,2155.1,0.46846743]
[1770234231479,0.10000359,2155.5,2154.8,7.39647752]
[1770234232378,0.10000359,2155.5,2154.8,7.40020912]
[1770234232584,0.10000359,2155.3,2154.8,0.0037316]
[1770234232786,0.10000359,2155.2,2154.8,0.0037316]
[1770234233085,0.10000359,2155.3,2154.5,7.39647752]
[1770234233284,7.4826739,2155.5,2154.5,7.39647752]
[1770234233485,0.10000359,2155.3,2154.4,0.7703]
[1770234233785,7.58267749,2155.3,2154.4,0.7703]
[1770234234083,0.10000359,2154.7,2153.8,6.92031512]
[1770234234282,0.10000359,2154.7,2153.5,6.92031512]
[1770234234283,7.49650722,2154.7,2153.5,6.92031512]
[1770234234476,7.49650722,2154.5,2153.3,0.464]
[1770234234783,7.59651081,2154.5,2153.4,6.92031512]
[1770234234985,7.49650722,2154.8,2153.4,6.92031512]
[1770234235186,7.49650722,2154.8,2153.4,6.9238041]
[1770234235381,7.59651081,2154.8,2153.6,6.92031512]
[1770234235581,7.59651081,2154.6,2153.6,6.92031512]
[1770234235884,7.49650722,2154.6,2153.6,6.92031512]
[1770234236085,0.10000359,2154.4,2153.6,6.92031512]
[1770234236283,7.49650722,2154.4,2153.5,0.1572]
[1770234236580,0.10000359,2154.2,2153.5,0.1572]
[1770234236780,0.10000359,2154.1,2153.5,0.1572]
[1770234237280,0.00446242,2154.2,2153.5,7.07751512]
[1770234238182,0.00446242,2154.2,2153.5,0.1572]
[1770234238183,0.10000359,2154.0,2153.5,0.1572]
[1770234238380,7.59651081,2154.0,2153.5,0.1572]
[1770234238581,0.10000359,2153.8,2153.5,7.1546189]
[1770234238881,0.00446242,2154.2,2153.5,7.1546189]
[1770234239086,0.00446242,2154.2,2153.6,0.23261]
[1770234239287,0.00446242,2154.2,2153.5,7.1546189]
[1770234240489,7.36678474,2155.4,2154.0,6.9974189]
[1770234240689,7.46678833,2155.3,2154.0,7.2299789]
[1770234240983,7.36678474,2155.9,2154.5,6.9974189]
[1770234241281,7.3708068,2155.9,2154.1,6.9974189]
[1770234241485,7.46678833,2155.6,2154.1,6.9974189]
[1770234241787,7.46678833,2155.4,2154.1,6.9974189]
[1770234241987,7.36678474,2155.2,2154.1,6.9974189]
[1770234242485,7.46678833,2155.0,2154.1,6.9974189]
[1770234242681,7.46678833,2155.3,2154.2,6.9974189]
[1770234242883,7.36678474,2155.8,2154.4,6.9974189]
[1770234243385,7.46678833,2155.5,2154.4,6.9974189]
[1770234243584,0.10000359,2155.4,2154.4,6.9974189]
[1770234243986,0.10000359,2155.3,2154.4,6.9974189]
[1770234244285,7.36678474,2155.5,2154.4,6.9974189]
[1770234244485,0.10000359,2155.3,2154.4,7.2299389]
[1770234244690,7.46678833,2155.2,2154.1,6.9974189]
[1770234244885,7.36678474,2155.2,2154.1,7.2299689]
[1770234245285,0.23639206,2155.9,2154.1,7.2299689]
[1770234245286,7.36678474,2155.4,2154.1,7.2299689]
[1770234245685,0.23237,2155.8,2153.8,6.9974189]
[1770234245686,7.36678474,2154.8,2153.8,6.9974189]
[1770234246085,0.10000359,2154.6,2153.8,6.9974189]
[1770234246384,0.10000359,2154.4,2153.5,7.3872289]
[1770234246590,0.10000359,2154.5,2153.5,7.3872289]
[1770234246786,7.36678474,2155.0,2153.7,6.9974189]
[1770234246988,7.46678833,2155.0,2153.7,6.9974189]
[1770234247187,7.36678474,2155.0,2153.7,7.2300189]
[1770234247388,0.464,2155.1,2153.9,6.9974189]
[1770234247890,0.10000359,2155.0,2153.9,6.9974189]
[1770234248492,0.10000359,2155.0,2154.0,7.2299789]
[1770234248689,7.83078474,2155.1,2154.0,7.2299789]
[1770234248888,0.10000359,2155.0,2154.0,7.2299789]
[1770234249093,0.10000359,2155.0,2154.2,6.9974189]
[1770234249295,7.83078474,2155.1,2154.2,6.9974189]
[1770234249494,0.10000359,2154.9,2154.2,6.9974189]
[1770234249694,7.83078474,2155.1,2154.2,6.9974189]
[1770234249893,0.464,2155.1,2154.2,6.9974189]
[1770234250094,0.464,2155.1,2154.2,7.2299589]
[1770234250289,7.36678474,2155.8,2154.5,7.2299289]
[1770234250493,7.46678833,2155.8,2154.5,7.2299289]
[1770234250793,0.10000359,2155.4,2154.5,7.2299289]
[1770234250993,0.10000359,2155.2,2154.5,7.2299289]
[1770234251196,0.10000359,2155.4,2154.5,7.2299289]
[1770234251384,7.3708068,2155.9,2154.8,6.9974189]
[1770234251785,0.10000359,2155.7,2154.8,6.9974189]
[1770234252191,0.10000359,2155.6,2154.8,6.9974189]
[1770234252394,0.10000359,2155.7,2154.8,6.9974189]
[1770234252593,7.36678474,2155.7,2154.7,0.23249]
[1770234252795,0.10000359,2155.2,2154.5,6.9974189]
[1770234252997,0.10000359,2155.3,2154.5,6.9974189]
[1770234253498,0.10000359,2155.0,2154.5,6.9974189]
[1770234253695,0.10000359,2155.0,2154.3,0.23253]
[1770234253894,0.10000359,2154.9,2154.3,0.23253]
[1770234254090,0.10000359,2155.1,2154.2,7.4614189]
[1770234254295,7.46678833,2155.1,2154.2,7.4614189]
[1770234254597,0.10000359,2154.9,2154.2,7.4614189]
[1770234255096,0.10000359,2154.8,2154.2,6.9974189]
[1770234255298,0.10000359,2154.9,2154.2,6.9974189]
[1770234255697,0.10000359,2154.8,2154.2,6.9974189]
[1770234255897,0.10000359,2154.9,2154.2,6.9974189]
[1770234256397,0.10000359,2154.8,2154.2,6.9974189]
[1770234256597,0.10000359,2154.9,2154.2,6.9974189]
[1770234257100,0.10000359,2154.8,2154.2,6.9974189]
[1770234257297,0.10000359,2154.9,2154.2,6.9974189]
[1770234257496,7.36678474,2155.4,2154.3,6.9974189]
[1770234257897,0.00402206,2155.9,2154.3,6.9974189]
[1770234257898,7.36678474,2155.7,2154.6,6.9974189]
[1770234258198,7.46678833,2155.7,2154.6,6.9974189]
[1770234258492,0.10000359,2155.5,2154.6,6.9974189]
[1770234258692,7.46678833,2155.1,2154.3,2.75085724]
[1770234258890,7.36678474,2154.8,2153.7,9.74827614]
[1770234259094,7.36678474,2155.1,2153.9,6.9974189]
[1770234259291,7.36678474,2155.1,2154.3,7.2299489]
[1770234259600,7.36678474,2155.5,2154.5,6.9974189]
[1770234259801,0.10000359,2155.4,2154.5,6.9974189]
[1770234260200,0.10000359,2155.3,2154.5,6.9974189]
[1770234260400,7.46678833,2155.4,2154.5,6.9974189]
[1770234260694,7.36678474,2155.4,2154.4,0.1571]
[1770234260900,0.10000359,2155.0,2154.4,0.1571]